{"text_format":"3","workbook":"xlsx","n_sheets":8,"sheets":["V1 Rekapitulacija","Gradbeno ključavničarska dela","Elektromontažna dela","SN in NN","DEA","ODKUP DEA","Vodenje in LR","Vzdrževanje"],"not_rendered":{"images":1,"defined_names":19},"read":"whole","date_system":"1900"}

{"sheet":"V1 Rekapitulacija","index":0,"n_rows":24,"n_cols":12,"rows_kept":24,"merged":[[6,1,7,11],[15,2,15,7],[15,8,15,10],[16,2,16,7],[16,8,16,10],[17,2,17,7],[17,8,17,10],[18,2,18,7],[18,8,18,10],[19,2,19,7],[19,8,19,10],[20,2,20,7],[20,8,20,10],[21,2,21,7],[21,8,21,10],[22,1,22,7],[22,8,22,10],[23,1,23,3],[23,5,23,6],[23,8,23,10]]}
[]
[]
[]
[]
[]
[]
[null,"REKAPITULACIJA STROŠKOV"]
{"$rows_empty":8}
[null,"1.",{"$f":"'Gradbeno ključavničarska dela'!$B$5","v":"GRADBENO - KLJUČAVNIČARSKA DELA"},{"$nulls":5},{"$f":"'Gradbeno ključavničarska dela'!$G$80","v":{"v":0,"d":"0.00"}},null,null,"EUR"]
[null,"2.",{"$f":"'Elektromontažna dela'!$B$5","v":"ELEKTRO DELA IN OPREMA"},{"$nulls":5},{"$f":"'Elektromontažna dela'!$G$194","v":{"v":0,"d":"0.00"}},null,null,"EUR"]
[null,"3.",{"$f":"'SN in NN'!$B$5","v":"SN in NN OPREMA"},{"$nulls":5},{"$f":"'SN in NN'!$G$159","v":{"v":0,"d":"0.00"}},null,null,"EUR"]
[null,"4.",{"$f":"DEA!$B$5","v":"DIZEL ELEKTRIČNI AGREGAT 400kVA"},{"$nulls":5},{"$f":"DEA!$G$124","v":{"v":0,"d":"0.00"}},null,null,"EUR"]
[null,"5.",{"$f":"'ODKUP DEA'!$B$5","v":"ODKUP OBSTOJEČEGA DEA"},{"$nulls":5},{"$f":"'ODKUP DEA'!$G$18","v":{"v":0,"d":"0.00"}},null,null,"EUR"]
[null,"6.",{"$f":"'Vodenje in LR'!$B$5","v":"VODENJE / NADZOR, MERITVE IN LASTNA PORABA"},{"$nulls":5},{"$f":"'Vodenje in LR'!$G$105","v":{"v":0,"d":"0.00"}},null,null,"EUR"]
[null,"7.",{"$f":"Vzdrževanje!$B$5","v":"VZDRŽEVANJE"},{"$nulls":5},{"$f":"Vzdrževanje!$G$34","v":{"v":0,"d":"0.00"}},null,null,"EUR"]
[null,"SKUPAJ:",{"$nulls":6},{"$f":"SUM(I16:K22)","v":{"v":0,"d":"0.00"}},null,null,"EUR"]
[null,"SKUPAJ Z DDV:",{"$nulls":3},{"v":0.22,"d":"22%"},null,null,{"$f":"I23*(1+F24)","v":{"v":0,"d":"0.00"}},null,null,"EUR"]

{"sheet":"Gradbeno ključavničarska dela","index":1,"n_rows":80,"n_cols":7,"rows_kept":80,"merged":[[4,1,4,6],[6,1,6,6],[8,0,9,1],[8,2,9,2],[8,3,9,3],[8,4,9,4],[8,5,9,5],[8,6,9,6],[51,0,51,5],[77,0,77,5],[79,0,79,5]]}
[]
[]
[]
[]
["1.","GRADBENO - KLJUČAVNIČARSKA DELA"]
[]
[]
[]
["POSTAVKA\nNo",null,"OPIS","ENOTA","OCENJENA\nKOLIČINA","CENA NA ENOTO \n(EUR)","SKUPAJ\n(EUR)"]
[]
[]
["1.","1.","GRADBENA DELA  - TP2050"]
[]
[null,"1.1","Izdelava izvrtin in prebojev v betonske temelje dimenzije fi200mm; potrebno za prehode NN in SN kablov ","kom",{"v":14,"d":"14.00"},null,{"$f":"E14*F14","v":{"v":0,"d":"0.00"}}]
[]
[null,"1.2","Izdelava izvrtin in prebojev v betonske temelje dimenzije fi200mm; potrebno za povezavo novi DEA in prostor starega DEA ","kom",{"v":2,"d":"2.00"},null,{"$f":"E16*F16","v":{"v":0,"d":"0.00"}}]
[]
[null,"1.3","Izdelava manjših izvrtin in prebojev za potrebe prehoda električnih inštalacij","kpl",{"v":1,"d":"1.00"},null,{"$f":"E18*F18","v":{"v":0,"d":"0.00"}}]
[]
[null,"1.4","Izdelava armirano betonskih temeljev novega DEA, dimenzije temeljev se prilagodi ohišju DEA. Vključno z materialom, izkopi in odvozi. Statični izračun, PZI in PID izdela Izvajalec. ","kpl",{"v":1,"d":"1.00"},null,{"$f":"E20*F20","v":{"v":0,"d":"0.00"}}]
[]
[null,"1.5","Izdelava kabelske kanalizacije med TP2050 in novim DEA, izkop in zasutje. Globina izkopa min 0,8 m. Cevi Stigmaflex 4 x fi160 mm, obbetonirane. ","m",{"v":5,"d":"5.00"},null,{"$f":"E22*F22","v":{"v":0,"d":"0.00"}}]
[]
[null,"1.6","Izdelava kanalizacije med novim DEA in prostorom starega DEA (dovod nafte iz rezervoarja), Globina izkopa min 0,8 m. Cevi Stigmaflex 2 x fi160 mm, obbetonirane. ","m",{"v":5,"d":"5.00"},null,{"$f":"E24*F24","v":{"v":0,"d":"0.00"}}]
[]
[null,"1.7","Izkopa in zasip kanala za izvedbo dodatne ozemljilne mreže okoli novega DEA. Globina izkopa min 0,6 m. (Valjanec FeZn že upoštevan pri izdelavi notranje ozemljilne mreže)","m",{"v":30,"d":"30.00"},null,{"$f":"E26*F26","v":{"v":0,"d":"0.00"}}]
[]
[null,"1.8","Ureditev kovinske obrobe strehe, odstranitev rje, protikorozijska zaščita 1x temeljna barva, 2x lak, višine 0,6 m, dolžine 20 m","m2",{"v":12,"d":"12.00"},null,{"$f":"E28*F28","v":{"v":0,"d":"0.00"}}]
[]
[null,"1.9","Ureditev obrob steklenih oken, odstranitev rje, protikorozijska zaščita 1x temeljna barva, 2x lak, dodatna zatesnitev odprtin","m",{"v":5,"d":"5.00"},null,{"$f":"E30*F30","v":{"v":0,"d":"0.00"}}]
[]
[null,"1.10","Izdelava novih Alu obrob s podkonstrukcijo na zadnji strani objekta, barva usklajena z investitorjem, dolžina 5 m, višina 60 cm","m2",{"v":3,"d":"3.00"},null,{"$f":"E32*F32","v":{"v":0,"d":"0.00"}}]
[]
[null,"1.11","Popravilo - sanacija opečnate fasade na zadnji strani objekta (avtorsko zaščiten objekt). Potrebna postopna natančna zamenjava opek","m2",{"v":20,"d":"20.00"},null,{"$f":"E34*F34","v":{"v":0,"d":"0.00"}}]
[]
[null,"1.12","Barvanje fasade obstoječega DEA prostora","m2",{"v":30,"d":"30.00"},null,{"v":0,"d":"0.00"}]
[]
[null,"1.13","Rušenje betonskih pregradnih sten celic vključno z zarezom in odvozom. Površina stene 220x320x8cm","kom",{"v":5,"d":"5.00"},null,{"$f":"E38*F38","v":{"v":0,"d":"0.00"}}]
[]
[null,"1.14","Popravilo - sanacija poškodb nastalih ob rušenju pregradnih sten celic","kpl",{"v":1,"d":"1.00"},null,{"$f":"E40*F40","v":{"v":0,"d":"0.00"}}]
[]
[null,"1.15","Odstranitev talne obloge v TP2050 in izvedba protiprašnega premaza","m2",{"v":40,"d":"40.00"},null,{"$f":"E42*F42","v":{"v":0,"d":"0.00"}}]
[]
[null,"1.16","Izdelava opleskov s predhodno odstranitvijo starih (stari oplesk se lušči). Opleski se izvedejo v TP205 in starem DEA prostoru 2x","m2",{"v":140,"d":"140.00"},null,{"$f":"E44*F44","v":{"v":0,"d":"0.00"}}]
[]
[null,"1.17","Zapiranje obstoječih odprtin (stari kabli) ","kpl",{"v":1,"d":"1.00"},null,{"$f":"E46*F46","v":{"v":0,"d":"0.00"}}]
[]
[null,"1.18","Finalne obdelave s čiščenjem, vključujoč manjša popravila nastala pri montiranju opreme in izdelavi inštalacij. Ponudnik upošteva tudi finalno čiščenje prostorov po končani montaži in zagonu opreme.","kpl",{"v":1,"d":"1.00"},null,{"$f":"E48*F48","v":{"v":0,"d":"0.00"}}]
[]
[null,"1.19","Nepredvideno","%",{"v":5,"d":"5.00"},null,{"$f":"SUM(G14:G48)*0.05","v":{"v":0,"d":"0.00"}}]
[]
["SKUPAJ 1.1: GRADBENA DELA:",{"$nulls":5},{"$f":"SUM(G13:G51)","v":{"v":0,"d":"0.00"}}]
[]
["1.","2.","KLJUČAVNIČARSKA DELA  - TP2050"]
[]
[null,"2.1","Izdelava nosilnih pocinkanih podkonstrukcij SN in NN opreme ter ostalih omar v TP2050. Izvajalec mora glede na težo dobavljene opreme izdelati statični izračun podkonstrukcije ter PZI in PID dokumentacijo.","kpl",{"v":1,"d":"1.00"},null,{"$f":"E56*F56","v":{"v":0,"d":"0.00"}}]
[]
[null,"2.2","Izdelava žične ograje z vrati in ključavnico okoli SN stikalnih celic. Ograja višine 2,5 m in dolžine 6 m","kpl",{"v":1,"d":"1.00"},null,{"$f":"E58*F58","v":{"v":0,"d":"0.00"}}]
[]
[null,"2.3","Izdelava tipskega dvojnega poda po TP2050. Dvojni pod višine cca. 55 cm in nosilnosti minimalno 600 kg/m2. Pohodni plošče 600x600mm ( leseno jedro oblečeno s pločevino, zgornji zaključni sloj je PVC ), elektrostatična prevodnost plošč >106 Ohm.","m2",{"v":45,"d":"45.00"},null,{"$f":"E60*F60","v":{"v":0,"d":"0.00"}}]
[]
[null,"2.4","Izdelava dveh stopnic dvojnega poda in manjše ograjice. Jeklena konstrukcija, pocinkana","kpl",{"v":1,"d":"1.00"},null,{"$f":"E62*F62","v":{"v":0,"d":"0.00"}}]
[]
[null,"2.5","Sanacija vhodnih vrat (TP2050 in DEA prostor), površine 2,5 m2. Peskanje in antikorozivna zaščita 1x temeljna barva, 2x lak, zamanjava tesnil vrat in ključavnice. Barva po izbiri Naročnika","kos",{"v":3,"d":"3.00"},null,{"$f":"E64*F64","v":{"v":0,"d":"0.00"}}]
[]
[null,"2.6","Sanacija kovinskih mrež zaščite TR boksov. Čiščenje rje in antikorozivna zaščita 1x temeljna barva, 2x lak. Dolžina mrež 11 m, višina 2,6 m.","kpl",{"v":1,"d":"1.00"},null,{"$f":"E66*F66","v":{"v":0,"d":"0.00"}}]
[]
[null,"2.7","Popravilo vrat (vodila) za vstop v TR boks in namestitev ključavnice","kos",{"v":2,"d":"2.00"},null,{"$f":"E68*F68","v":{"v":0,"d":"0.00"}}]
[]
[null,"2.8","Izdelava manjših kovinskih nosilnih konzol za pritrjevanje SN in NN kablov ob transformatorju","kpl",{"v":2,"d":"2.00"},null,{"$f":"E70*F70","v":{"v":0,"d":"0.00"}}]
[]
[null,"2.9","Sanacija konstrukcije nadstreška. Čiščenje rje in antikorozivna zaščita kovinskih profilov 1x temeljna barva, 2x lak, dimenzije 15x15cm, dolžine 30m","kpl",{"v":1,"d":"1.00"},null,{"$f":"E72*F72","v":{"v":0,"d":"0.00"}}]
[]
[null,"2.10","Montaža novih tirnic za postavitev dveh TR 630 kVA (nosilnost tirnic dimenzionirana na težo dobavljenega TR). Dolžina tirnic 4 x 3,2 m","kpl",{"v":1,"d":"1.00"},null,{"$f":"E74*F74","v":{"v":0,"d":"0.00"}}]
[]
[null,"2.11","Nepredvidena dela","%",{"v":5,"d":"5.00"},null,{"$f":"SUM(G55:G75)*0.05","v":{"v":0,"d":"0.00"}}]
[]
["SKUPAJ 1.2: KLJUČAVNIČARSKA DELA:",{"$nulls":5},{"$f":"SUM(G55:G77)","v":{"v":0,"d":"0.00"}}]
[]
["SKUPAJ 1. GRADBENA IN KLJUČAVNIČARSKA DELA:",{"$nulls":5},{"$f":"G52+G78","v":{"v":0,"d":"0.00"}}]

{"sheet":"Elektromontažna dela","index":2,"n_rows":194,"n_cols":7,"rows_kept":194,"merged":[[4,1,4,6],[6,1,6,6],[8,0,9,1],[8,2,9,2],[8,3,9,3],[8,4,9,4],[8,5,9,5],[8,6,9,6],[41,0,41,5],[69,0,69,5],[101,0,101,5],[135,0,135,5],[145,0,145,5],[183,0,183,5],[191,0,191,5],[193,0,193,5]]}
[]
[]
[]
[]
["2.","ELEKTRO DELA IN OPREMA"]
[]
[]
[]
["POSTAVKA\nNo",null,"OPIS","ENOTA","OCENJENA\nKOLIČINA","CENA NA ENOTO \n(EUR)","SKUPAJ\n(EUR)"]
[]
[]
["2.","1.","ELEKTROMONTAŽNA DELA - TP2050"]
[]
[null,"1.1","Demontaža stare SN opreme (prostorzračne celice, vključno s kovinskimi konzolami)","kpl",{"v":1,"d":"1.00"},null,{"$f":"E14*F14","v":{"v":0,"d":"0.00"}}]
[]
[null,"1.2","Odvoz stare SN opreme na deponijo in pridobitev potrdila o uničenju","kpl",{"v":1,"d":"1.00"},null,{"$f":"E16*F16","v":{"v":0,"d":"0.00"}}]
[]
[null,"1.3","Demontaža stare NN opreme ","kpl",{"v":1,"d":"1.00"},null,{"$f":"E18*F18","v":{"v":0,"d":"0.00"}}]
[]
[null,"1.4","Odvoz stare NN opreme na deponijo in pridobitev potrdila o uničenju","kpl",{"v":1,"d":"1.00"},null,{"$f":"E20*F20","v":{"v":0,"d":"0.00"}}]
[]
[null,"1.5","Skrbna demontaže omare kontrolnih meritev vključno s primarnimi elementi (objemni TIT) ter predaja opreme investitorju","kpl",{"v":1,"d":"1.00"},null,{"$f":"E22*F22","v":{"v":0,"d":"0.00"}}]
[]
[null,"1.6","Demontaža obstoječega DEA s pomožno opremo (močnostna omara, agregat, zračenje, rezervoar).","kpl",{"v":1,"d":"1.00"},null,{"$f":"E24*F24","v":{"v":0,"d":"0.00"}}]
[]
[null,"1.7","Demontaža starih močnostnih energetskih kablov in odvoz na deponijo","kpl",{"v":1,"d":"1.00"},null,{"$f":"E26*F26","v":{"v":0,"d":"0.00"}}]
[]
[null,"1.8","Demontaža obstoječih TR oljne izvedbe in odvoz na razgradnjo in pridobitev potrdila o uničenju","kom",{"v":3,"d":"3.00"},null,{"$f":"E28*F28","v":{"v":0,"d":"0.00"}}]
[]
[null,"1.9","Izdelava zunanje in notranje ozemljilne mreže z valjancem 25x4mm vključno z materialom za pritrditev na zid in spajanje","m",{"v":90,"d":"90.00"},null,{"$f":"E30*F30","v":{"v":0,"d":"0.00"}}]
[]
[null,"1.10","Izdelava lokalnih izenačitev potenciala z Cu vodniki P/F 70mm2, spojni in zaključni material","m",{"v":40,"d":"40.00"},null,{"$f":"E32*F32","v":{"v":0,"d":"0.00"}}]
[]
[null,"1.11","Manjše izenačitve potenciala do 16mm2","m",{"v":15,"d":"15.00"},null,{"$f":"E34*F34","v":{"v":0,"d":"0.00"}}]
[]
[null,"1.12","Podaljševanje obstoječih NN kablov:\n- A-testirane kabelske spojke\n- kabelski zaključki\n- kabli različnih presekov in dolžin (cca. 12m na odvod)\n- usklajevanje izklopov (delovni nalog ter dovoljenje za delo) vključujoč nočno delo\n- zagon (vklop) z meritvijo izolacijske upornosti in vrtilnega polja","kpl",{"v":33,"d":"33.00"},null,{"$f":"E36*F36","v":{"v":0,"d":"0.00"}}]
[]
[null,"1.13","Meritve po merilnih protokolih in izdelava poročil","kpl",{"v":1,"d":"1.00"},null,{"$f":"E38*F38","v":{"v":0,"d":"0.00"}}]
[]
[null,"1.14","Nepredvidena dela","%",{"v":5,"d":"5.00"},null,{"$f":"SUM(G13:G39)*0.05","v":{"v":0,"d":"0.00"}}]
[]
["SKUPAJ 2.1: ELEKTROMONTAŽNA DELA:",{"$nulls":5},{"$f":"SUM(G13:G41)","v":{"v":0,"d":"0.00"}}]
[]
["2.","2.","KABLI (ENERGETSKI)"]
[]
[null,"2.1","Dobava in polaganje 20 kV kablov NA2XS(FL)2Y 1x70 mm2 RM 16 mm2","m",{"v":140,"d":"140.00"},null,{"$f":"E46*F46","v":{"v":0,"d":"0.00"}}]
[]
[null,"2.2","Izdelava konektorske kabelske glave 24 kV za priključitev NA2XS(FL)2Y 1x70 mm2 RM 16 mm2 (dovod, 2xTR)","kpl",{"v":3,"d":"3.00"},null,{"$f":"E48*F48","v":{"v":0,"d":"0.00"}}]
[]
[null,"2.3","Kabelski končniki za NA2XS(FL)2Y 1x70 mm2 RM 16 mm2 (2xTR)","kpl",{"v":2,"d":"2.00"},null,{"$f":"E50*F50","v":{"v":0,"d":"0.00"}}]
[]
[null,"2.4","1 kV kabli NYY 1x185 mm2 (TR1 - NN plošča) ","m",{"v":245,"d":"245.00"},null,{"$f":"E52*F52","v":{"v":0,"d":"0.00"}}]
[]
[null,"2.5","1 kV kabli NYY 1x185 mm2 (TR2 - NN plošča)","m",{"v":260,"d":"260.00"},null,{"$f":"E54*F54","v":{"v":0,"d":"0.00"}}]
[]
[null,"2.6","1 kV kabli NYY 1x240 mm2 (Kompenzacija - NN plošča)","m",{"v":42,"d":"42.00"},null,{"$f":"E56*F56","v":{"v":0,"d":"0.00"}}]
[]
[null,"2.7","1 kV kabli NYY 1x185 mm2 (DEA - NN plošča)","m",{"v":142,"d":"142.00"},null,{"$f":"E58*F58","v":{"v":0,"d":"0.00"}}]
[]
[null,"2.8","Kabelski zaključki, objemke…","kpl",{"v":8,"d":"8.00"},null,{"$f":"E60*F60","v":{"v":0,"d":"0.00"}}]
[]
[null,"2.9","Distančniki za trojček in vezice za pritrditev kablov","kpl",{"v":1,"d":"1.00"},null,{"$f":"E62*F62","v":{"v":0,"d":"0.00"}}]
[]
[null,"2.10","Meritve izolacijske upornosti in napetostni preizkus SN kablov ter izdelava poročila","kpl",{"v":1,"d":"1.00"},null,{"$f":"E64*F64","v":{"v":0,"d":"0.00"}}]
[]
[null,"2.11","Meritve po merilnih protokolih in izdelava poročil","kpl",{"v":1,"d":"1.00"},null,{"$f":"E66*F66","v":{"v":0,"d":"0.00"}}]
[]
[null,"2.12","Nepredvidena dela","%",{"v":3,"d":"3.00"},null,{"$f":"SUM(G45:G67)*0.03","v":{"v":0,"d":"0.00"}}]
[]
["SKUPAJ 2.2: KABLI (ENERGETSKI):",{"$nulls":5},{"$f":"SUM(G45:G68)","v":{"v":0,"d":"0.00"}}]
[]
["2.","3.","KABLI (SIGNALNI, KRMILNI, INŠTALACIJSKI, KOMUNIKACIJSKI)"]
[]
[null,"3.1","Dobava in polaganje NIK kanalov ali PN cevi za potrebe el. inštalacij vključno s pritrdilnim materialom","m",{"v":140,"d":"140.00"},null,{"$f":"E74*F74","v":{"v":0,"d":"0.00"}}]
[]
[null,"3.2","Dobava in montaža kabelskih polic PK200 vključno s pritdilnimi konzolami in drobnim materialom","m",{"v":20,"d":"20.00"},null,{"$f":"E76*F76","v":{"v":0,"d":"0.00"}}]
[]
[null,"3.3","Dobava in montaža kabelskih polic PK100 vključno s pritdilnimi konzolami in drobnim materialom","m",{"v":40,"d":"40.00"},null,{"$f":"E78*F78","v":{"v":0,"d":"0.00"}}]
[]
[null,"3.4","Kabli inštalacijski NYM-J 3x1,5mm2","m",{"v":380,"d":"380.00"},null,{"$f":"E80*F80","v":{"v":0,"d":"0.00"}}]
[]
[null,"3.5","Kabli inštalacijski NYM-J 5x1,5mm2","m",{"v":40,"d":"40.00"},null,{"$f":"E82*F82","v":{"v":0,"d":"0.00"}}]
[]
[null,"3.6","Kabli inštalacijski NYM-J 3x2,5mm2","m",{"v":80,"d":"80.00"},null,{"$f":"E84*F84","v":{"v":0,"d":"0.00"}}]
[]
[null,"3.7","Kabli inštalacijski NYM-J 5x2,5mm2","m",{"v":80,"d":"80.00"},null,{"v":0,"d":"0.00"}]
[]
[null,"3.8","Signalno krmilni kabel LiYCY 5x1,5mm2","m",{"v":150,"d":"150.00"},null,{"$f":"E88*F88","v":{"v":0,"d":"0.00"}}]
[]
[null,"3.9","Signalno krmilni kabel LiYCY 7x1,5mm2","m",{"v":270,"d":"270.00"},null,{"$f":"E90*F90","v":{"v":0,"d":"0.00"}}]
[]
[null,"3.10","Signalno krmilni kabel LiYCY 12x1,5mm2","m",{"v":60,"d":"60.00"},null,{"$f":"E92*F92","v":{"v":0,"d":"0.00"}}]
[]
[null,"3.11","Signalno krmilni kabel Olflex Cl.110CY 5x2,5mm2","m",{"v":40,"d":"40.00"},null,{"$f":"E94*F94","v":{"v":0,"d":"0.00"}}]
[]
[null,"3.12","Komunikacijski kabel SFTP cat.6","m",{"v":250,"d":"250.00"},null,{"$f":"E96*F96","v":{"v":0,"d":"0.00"}}]
[]
[null,"3.13","Optični multimode kabel, 12 vlaken v zaščitnem ohišju za zunanje polaganje, vključno z zaključki","m",{"v":150,"d":"150.00"},null,{"$f":"E98*F98","v":{"v":0,"d":"0.00"}}]
[]
[null,"3.14","Nepredvidena dela","%",{"v":3,"d":"3.00"},null,{"$f":"SUM(G73:G99)*0.03","v":{"v":0,"d":"0.00"}}]
[]
["SKUPAJ 2.3: KABLI (OSTALO):",{"$nulls":5},{"$f":"SUM(G72:G100)","v":{"v":0,"d":"0.00"}}]
[]
["2.","4.","ELEKTROINŠTALACIJSKA OPREMA"]
[]
[null,"4.1","Dobava in vgradnja flurescentnih svetilk kot npr. INTRA 2x58W, IP65, elektronski vžig","kom",{"v":10,"d":"10.00"},null,{"v":0,"d":"0.00"}]
[]
[null,"4.2","Dobava in vgradnja zunanjega reflektorja LED, 80W s senzorjem gibanja","kom",{"v":1,"d":"1.00"},null,{"$f":"E108*F108","v":{"v":0,"d":"0.00"}}]
[]
[null,"4.3","Ureditev obstoječe zunanje svetilke pred vhodom v TP2050","kom",{"v":1,"d":"1.00"},null,{"v":0,"d":"0.00"}]
[]
[null,"4.4","Dobava in vgradnja svetilke zasilne razsvetljave s stopnjo zaščite IP 65. Svetilka za označevanje izhoda v sili ali kot zasilna svetilka funkcionalne oblike, ki je sestavljena iz konveksnega ohišja in ravnega transparentnega pokrova. Svetlobo oddaja svetilka s pomočjo zrcalnega odsevnika iz aluminizirane plastike kompleksne oblike. Svetilka se vgradi nadgradno neposredno na steno, betonski strop ali tipska obešala; npr. Beghelli Logica LED 24W, avtonomija 3h ter nalepka piktograma smeri izhoda","kom",{"v":6,"d":"6.00"},null,{"$f":"E112*F112","v":{"v":0,"d":"0.00"}}]
[]
[null,"4.5","Dobava in vgradnja dvopolnega stikala;","kom",{"v":1,"d":"1.00"},null,{"$f":"E114*F114","v":{"v":0,"d":"0.00"}}]
[]
[null,"4.6","Dobava in vgradnja enopolnega stikala;","kom",{"v":4,"d":"4.00"},null,{"$f":"E116*F116","v":{"v":0,"d":"0.00"}}]
[]
[null,"4.7","Dobava in vgradnja enofazne vtičnice;","kom",{"v":5,"d":"5.00"},null,{"$f":"E118*F118","v":{"v":0,"d":"0.00"}}]
[]
[null,"4.8","Dobava in vgradnja trifazne vtičnice;","kom",{"v":1,"d":"1.00"},null,{"$f":"E120*F120","v":{"v":0,"d":"0.00"}}]
[]
[null,"4.9","Dobava in vgradnja razvodne doze;","kom",{"v":7,"d":"7.00"},null,{"$f":"E122*F122","v":{"v":0,"d":"0.00"}}]
[]
[null,"4.10","Dobava in vgradnja temperaturnega tipala npr. ATM2-I za vključitev v 4-20mA zanko;","kom",{"v":4,"d":"4.00"},null,{"v":0,"d":"0.00"}]
[]
[null,"4.12","Demontaža starih električnih inštalacij in odvoz na deponijo","kpl",{"v":1,"d":"1.00"},null,{"v":0,"d":"0.00"}]
[]
[null,"4.13","Montaža novih električnih inštalacij, požarnih senzorjev ter zasilne razsvetljave ","kpl",{"v":1,"d":"1.00"},null,{"$f":"E128*F128","v":{"v":0,"d":"0.00"}}]
[]
[null,"4.14","Meritev električnih inštalacij in upornosti okvarne zanke z izdelavo poročila","kpl",{"v":1,"d":"1.00"},null,{"$f":"E130*F130","v":{"v":0,"d":"0.00"}}]
[]
[null,"4.15","Meritev in preizkus osvetljenosti  zasilne razsvetljave z izdelavo poročila","kpl",{"v":1,"d":"1.00"},null,{"$f":"E132*F132","v":{"v":0,"d":"0.00"}}]
[]
[null,"4.16","Nepredvidena dela","%",{"v":3,"d":"3.00"},null,{"$f":"SUM(G106:G133)*0.03","v":{"v":0,"d":"0.00"}}]
[]
["SKUPAJ 2.4: ELEKTROINŠTALACIJSKA DELA:",{"$nulls":5},{"$f":"SUM(G104:G135)","v":{"v":0,"d":"0.00"}}]
[]
["2.","5.","UPS NAPRAVA"]
[]
[null,"5.1","Dobava, montaža, priključitev in spuščanje v pogon UPS ON-LINE naprave moči 3000VA, avtonomije 2 uri,  z Modbus TCP/IP komunikacijo in vezjem za brezprekinitveni by-pass, vključno s kovinskim stojalom za postavitev naprave. ","kom",{"v":1,"d":"1.00"},null,{"$f":"E140*F140","v":{"v":0,"d":"0.00"}}]
[]
[null,"5.2","Omarica z 2x avtomatskimi varovalkami in avtomatsko varovalko s fizično zaščito vklopa (ključ) za potrebe izvedbe brezprekinitvenega by-passa ","kpl",{"v":1,"d":"1.00"},null,{"$f":"E142*F142","v":{"v":0,"d":"0.00"}}]
[]
[null,"5.3","Nepredvidena dela","%",{"v":3,"d":"3.00"},null,{"$f":"SUM(G140:G143)*0.03","v":{"v":0,"d":"0.00"}}]
[]
["SKUPAJ 2.5: UPS NAPRAVA:",{"$nulls":5},{"$f":"SUM(G139:G145)","v":{"v":0,"d":"0.00"}}]
[]
["2.","6.","POŽARNO JAVLJANJE"]
[]
[null,"6.1","Optični javljalnik dima z vgrajenim izolatorjem zanke; Cerberus PRO, OP720","kom",{"v":9,"d":"9.00"},null,{"$f":"E150*F150","v":{"v":0,"d":"0.00"}}]
[]
[null,"6.2","Podnožje javljalnikov za adresibilne javljalnike Cerberus PRO, DB721","kom",{"v":9,"d":"9.00"},null,{"$f":"E152*F152","v":{"v":0,"d":"0.00"}}]
[]
[null,"6.3","Elektronika ročnega javljalnika; direktni način proženja, FDME221+FDMH291-R","kom",{"v":4,"d":"4.00"},null,{"$f":"E154*F154","v":{"v":0,"d":"0.00"}}]
[]
[null,"6.4","Paralelni indikator, FAA420RI","kom",{"v":2,"d":"2.00"},null,{"$f":"E156*F156","v":{"v":0,"d":"0.00"}}]
[]
[null,"6.5","Drobni montažni material","kpl",{"v":1,"d":"1.00"},null,{"$f":"E158*F158","v":{"v":0,"d":"0.00"}}]
[]
[null,"6.6","Dobava in polaganje adresibilne linije za javljanje požara z kablom odpornosti E30,  delno v  NIK kanalih","m",{"v":200,"d":"200.00"},null,{"$f":"E160*F160","v":{"v":0,"d":"0.00"}}]
[]
[null,"6.7","Napisne ploščice in označevanje elementov - javljalnikov","kom",{"v":9,"d":"9.00"},null,{"$f":"E162*F162","v":{"v":0,"d":"0.00"}}]
[]
[null,"6.8","Piktogrami in napisne ploščice za ročne javljalnike požara","kom",{"v":4,"d":"4.00"},null,{"$f":"E164*F164","v":{"v":0,"d":"0.00"}}]
[]
[null,"6.9","Pritrdilni material za E30 kabel","kom",{"v":400,"d":"400.00"},null,{"$f":"E166*F166","v":{"v":0,"d":"0.00"}}]
[]
[null,"6.10","Drobni potrošni in nespecifirani materijal","kpl",{"v":1,"d":"1.00"},null,{"$f":"E168*F168","v":{"v":0,"d":"0.00"}}]
[]
[null,"6.11","Montaža sistema za javljanje požara na pripravljene instalacije, označevanje elementov","kpl",{"v":1,"d":"1.00"},null,{"$f":"E170*F170","v":{"v":0,"d":"0.00"}}]
[]
[null,"6.12","Programiranje sistema, vnos grafičnih podlog v program MM8000, nastavitve v nadzornem programu, spuščanje v obratovanje, testiranje, predaja v uporabo, izdelava navodil za uporabo, priučitev osebja","kpl",{"v":1,"d":"1.00"},null,{"$f":"E172*F172","v":{"v":0,"d":"0.00"}}]
[]
[null,"6.13","Pregled sistema javljanja požara s strani pooblaščene organizacije in pridobitev potrdila o brezhibnem delovanju","kpl",{"v":1,"d":"1.00"},null,{"$f":"E174*F174","v":{"v":0,"d":"0.00"}}]
[]
[null,"6.14","Izdelava sheme za projekt izvedenih del (PID)","kpl",{"v":1,"d":"1.00"},null,{"$f":"E176*F176","v":{"v":0,"d":"0.00"}}]
[]
[null,"6.15","Dobava ročnih gasilnih aparatov S9 in oznak","kom",{"v":4,"d":"4.00"},null,{"$f":"E178*F178","v":{"v":0,"d":"0.00"}}]
[]
[null,"6.16","Protipožarno A-testirano zapiranje vseh odprtin (prebojev) za prehode kablovja med prostori TP2050 in TR1-2 ter DEA z izdajo potrdila (preboji našteti med gradbenimi deli)","kpl",{"v":1,"d":"1.00"},null,{"$f":"E180*F180","v":{"v":0,"d":"0.00"}}]
[]
[null,"6.17","Nepredvidena dela","%",{"v":3,"d":"3.00"},null,{"$f":"SUM(G150:G181)*0.03","v":{"v":0,"d":"0.00"}}]
[]
["SKUPAJ 2.6: POŽARNO JAVLJANJE:",{"$nulls":5},{"$f":"SUM(G150:G183)","v":{"v":0,"d":"0.00"}}]
[]
["2.","7.","OSTALO"]
[]
[null,"7.1","Omara 200x100x40 cm za zaščitno opremo, opremljena z:\n - 2x čelada z vizirjem;\n - 2 kpl gumi rokavice 20 kV;\n - 2 kpl gumi škornji 20 kV;\n - 1 kos indikator napetosti 20 kV\n - 1 kos indikator napetosti 0,4 kV\n - 1 kpl prenosni ozemljilni trakovi - kratkostični 3p\n - 1 kos inštrument za vrtilno smer\n - 1 kos AKU LED svetilka - prostostoječa","kpl",{"v":1,"d":"1.00"},null,{"$f":"E188*F188","v":{"v":0,"d":"0.00"}}]
[]
[null,"7.2","Dobava in namestitev verig ter tablic z napisom POZOR VISOKA NAPETOST (TR1 in TR2 ter SN stikališče)","kom",{"v":3,"d":"3.00"},null,{"$f":"E190*F190","v":{"v":0,"d":"0.00"}}]
[]
["SKUPAJ 2.7: OSTALO:",{"$nulls":5},{"$f":"SUM(G188:G190)","v":{"v":0,"d":"0.00"}}]
[]
["SKUPAJ 2. ELEKTRO DELA IN OPREMA:",{"$nulls":5},{"$f":"G192+G184+G146+G136+G102+G70+G42","v":{"v":0,"d":"0.00"}}]

{"sheet":"SN in NN","index":3,"n_rows":159,"n_cols":7,"rows_kept":159,"merged":[[4,1,4,6],[6,1,6,6],[8,0,9,1],[8,2,9,2],[8,3,9,3],[8,4,9,4],[8,5,9,5],[8,6,9,6],[36,0,36,5],[50,0,50,5],[131,0,131,5],[156,0,156,5],[158,0,158,5]]}
[]
[]
[]
[]
["3.","SN in NN OPREMA"]
[]
[]
[]
["POSTAVKA\nNo",null,"OPIS","ENOTA","OCENJENA\nKOLIČINA","CENA NA ENOTO \n(EUR)","SKUPAJ\n(EUR)"]
[]
[]
["3.","1.","SN STIKALIŠČE 20 kV (24 kV, ≥630 A, Ik 20kA 3s)"]
[null,null,"kot npr. SIEMENS 8DJH"]
[]
[null,"1.1","Dovodni stikalni celici =J01 in =J02","kpl",{"v":2,"d":"2.00"},null,{"$f":"E15*F15","v":{"v":0,"d":"0.00"}}]
[null,null,"SF6 izolirana dovodna kabelska celica, kovinsko oklopljena, enojni sistem zbiralk, opremljena z:\n - 1x tripolni odklopni ločilnik ≥630 A in ozemljilnik, z ročnim pogonom, \n - 1x pomožnimi kontakti, najmanj 4NO + 4NC, signalna napetost 230 VAC, \n - LED indikator napetosti v vseh treh fazah,\n - položajna signalizacija stikalnih elementov in plina,\n - možnost zaklepanja stikal,\n - odvodnik prenapetosti,\n - slepa shema,\n - ožičeno na sponke\n  "]
[]
[null,"1.2","Celica za vzdolžno ločitev =J03","kpl",{"v":1,"d":"1.00"},null,{"$f":"E18*F18","v":{"v":0,"d":"0.00"}}]
[null,null,"SF6 izolirana dovodna kabelska celica, kovinsko oklopljena, enojni sistem zbiralk, opremljena z:\n - 1x tripolni odklopni ločilnik ≥630 A in ozemljilnik, z ročnim pogonom, \n - 1x pomožnimi kontakti, najmanj 4NO + 4NC, signalna napetost 230 VAC,\n - LED indikator napetosti v vseh treh fazah,\n - položajna signalizacija stikalnih elementov in plina,\n - možnost zaklepanja stikal,\n - slepa shema,\n - ožičeno na sponke,\n  "]
[]
[null,"1.3","Merilna celica =J04","kpl",{"v":1,"d":"1.00"},null,{"$f":"E21*F21","v":{"v":0,"d":"0.00"}}]
[null,null,"dvojedrni tokovni instrumentni transformator TIT 2x20/5/5 A v vseh treh fazah s karakteristikami skladno s SONDO (dve merilni jedri);"]
[null,null,"enopolno izolirani napetostni instrumentni transformator z varovalko, v vsaki fazi posebej, prestavno razmerje 3x NIT 20/√3 / 0,1/√3  / 0,1/√3, dve merilni jedri;"]
[null,null,"dvoje AC 3 polnih  instalacijskih odklopnikov Z 2A s pomožnimi kontakti za zaščito napetostnih tokokrogov;"]
[null,null,"ožičeno na priključne sponke;"]
[null,null,"možnost zaklepanja - obračunske števčne meritve."]
[]
[null,"1.4","Transformatorski celici =J05 in =J06","kpl",{"v":2,"d":"2.00"},null,{"$f":"E28*F28","v":{"v":0,"d":"0.00"}}]
[null,null,"SF6 izolirana transformatorska kabelska celica, kovinsko oklopljena, enojni sistem zbiralk, opremljena z:\n - 1x tripolni odklopni ločilnik ≥630 A in ozemljilnik, z ročnim pogonom, \n - 1x pomožnimi kontakti, najmanj 4NO + 4NC, signalna napetost 230 VAC, \n - LED indikator napetosti v vseh treh fazah,\n - položajna signalizacija stikalnih elementov in plina,\n - možnost zaklepanja stikal,\n - set treh SN varovalk z udarno iglo in indikacijo,\n - slepa shema,\n - ožičeno na sponke,\n  "]
[]
[null,"1.5","Izvedba funkcionalnih preizkusov, meritev in spuščanje v pogon","kpl",{"v":1,"d":"1.00"},null,{"$f":"E31*F31","v":{"v":0,"d":"0.00"}}]
[]
[null,"1.6","Zahtevani rezervni deli","kpl",{"v":1,"d":"1.00"},null,{"$f":"E33*F33","v":{"v":0,"d":"0.00"}}]
[null,null,"- SN varovalka za TR celice","kos",{"v":3,"d":"3.00"}]
[null,null,"- odvodnik prenapetosti za montažo v SN celico","kos",{"v":1,"d":"1.00"}]
[]
["SKUPAJ 3.1: SN STIKALIŠČE:",{"$nulls":5},{"$f":"SUM(G11:G36)","v":{"v":0,"d":"0.00"}}]
[]
["3.","2.","TRANSFORMATORJA  20/0,4kV, 630kVA TER ZAŠČITA"]
[]
[null,"2.1","Trifazni dvonavitni transformator 10(20)/0,4 kV, 630 kVA, uk=6%, Dyn5, suhe izvedbe, zmanjšane izgube, zmanjšan šum, okoljski razred E2, klimatski razred C2, odpornost na gorenje F1, temperaturne sonde v navitju in jedru, prigrajeni ventilatorji za prisilno hlajenje.\nTransformator kontejnerske zunanje izvedbe z zračenjem in ventilatorji.","kpl",{"v":2,"d":"2.00"},null,{"$f":"E41*F41","v":{"v":0,"d":"0.00"}}]
[]
[null,"2.2","Temperaturna zaščita transformatorja kot npr. NT935 z modbus TCP/IP komunikacijo in pretvornikom","kpl",{"v":2,"d":"2.00"},null,{"$f":"E43*F43","v":{"v":0,"d":"0.00"}}]
[]
[null,"2.3","Zaščita ventilatorjev za prisilno hlajenje transformatorja kot npr. VRT200","kpl",{"v":2,"d":"2.00"},null,{"$f":"E45*F45","v":{"v":0,"d":"0.00"}}]
[]
[null,"2.4","Inox omarici s steklenimi okenci za montažo TR zaščite","kpl",{"v":2,"d":"2.00"},null,{"$f":"E47*F47","v":{"v":0,"d":"0.00"}}]
[]
[null,"2.5","Izvedba funkcionalnih preizkusov, meritev in spuščanje v pogon","kpl",{"v":1,"d":"1.00"},null,{"$f":"E49*F49","v":{"v":0,"d":"0.00"}}]
[]
["SKUPAJ 3.2: TRANSFORMATORJA IN ZAŠČITA:",{"$nulls":5},{"$f":"SUM(G38:G50)","v":{"v":0,"d":"0.00"}}]
[]
["3.","3.","NN STIKALIŠČE "]
[null,null,"Kot npr: Siemens Sivacon S8"]
[]
[null,null,"Prosto stoječ, modularni, tipsko testirani, stikalni blok za dovod in razdelitev električne energije, sestavljen iz 8 dovodnih in odvodnih polj, skupne širine 5800mm, višina 2200mm, globina 600mm, nazivna napetost 400V, 50Hz, nazivni tok glavnih zbiralnic 2520A, pozicija zadaj-zgoraj, kratkostični zdržni tok Icw(1s) 65kA, zaščita IP31, notranja delitev (forma) 4b, kabelski prostori izvedeni s strani, priključki izolirani z gumijastimi uvodnicami, dovod s transformatorja (kabelski) - spodaj, odvodi (kabelski) - spodaj, z vrati za kabelski prostor, z ločenimi vrati za posamezna stikala - spredaj, z bočnimi stenami, lakiran, postavljen na dvignjen pod v stikališču, ožičen na sponke in preskušen. Posluževanje z zasučnimi ročicami pri zaprtih vratih in zaklepanjem izklopljenega položaja. Izvedba skladno z SIST EN 61439-1 in SIST EN 61439-2."]
[]
[null,"3.1","TR POLJI (+1NF00+K4 in +1NE00+K1)","kpl",{"v":2,"d":"2.00"},null,{"$f":"E58*F58","v":{"v":0,"d":"0.00"}}]
[null,null,"Dovodno transformatorsko polje, širina 400mm, z dovodom od transformatorja spodaj, položaj stikala ter izmerjene vrednosti parametrov so vodeni preko komunikacije, dobava, vgradnja in priklop"]
[]
[null,null,"Stikalo izvlečljive izvedbe In=1600A z motornim pogonom 230V AC, Icu 55kA, ključavnico za zaklepanje obeh položajev, ločenimi dodanimi tipkami za vklop in izklop, vklopnimi in izklopnimi tuljavami 230V AC, podnapetostno  U< tuljavo 230V AC,  pomožnimi kontakti vključen (4x), izključen (4x), navit (1x), izvlečen (1x), pripravljen za vklop (1x), digitalno zaščito I> 0,4 do 1 In, I>> 0,6 do 10 In ter integriranimi tokovniki. \nOstala oprema polja:\n• merilni prikazovalnik (U, I, P, S, Q, f, kWh, THD, cos fi)\n• komunikacijski modul in koncentrator\n• tri polni zaščitni avtomati Ik>55kA s pomožnimi kontakti signalizacije stanja\n• tipki vklop / izklop (črna / rdeča)\n• prenapetostna zaščita (odvodniki)\n• komunikacija modbus TCP/IP\n• stikalo primerno za sinhronizacijo\n• napisna ploščica\n• drobni spojni in vezni material, komplet z izdelavo stikalnega bloka, montaža in priključitev"]
[]
[null,"3.2","VEZNO POLJE (+1NF00+K5)","kpl",{"v":1,"d":"1.00"},null,{"$f":"E63*F63","v":{"v":0,"d":"0.00"}}]
[null,null,"Vezno polje, širina 600mm, dobava, položaj stikala ter izmerjene vrednosti parametrov so vodeni preko komunikacije, vgradnja in priklop"]
[]
[null,null,"Stikalo izvlečljive izvedbe In=1600A z motornim pogonom 230V AC, Icu 55kA, ključavnico za zaklepanje obeh položajev, ločenimi dodanimi tipkami za vklop in izklop, vklopnimi in izklopnimi tuljavami 230V AC, podnapetostno  U< tuljavo 230V AC, pomožnimi kontakti vključen (4x), izključen (4x), navit (1x), izvlečen (1x), pripravljen za vklop (1x), digitalno zaščito I> 0,4 do 1 In, I>> 0,6 do 10 In ter integriranimi tokovniki. \nOstala oprema polja:\n• merilni prikazovalnik (U, I, P, S, Q, f, kWh, THD, cos fi)\n• komunikacijski modul in koncentrator\n• tri polni zaščitni avtomati Ik>55kA s pomožnimi kontakti signalizacije stanja\n• tipki vklop / izklop (črna / rdeča)\n• komunikacija modbus TCP/IP\n• stikalo primerno za sinhronizacijo\n• napisna ploščica\n• drobni spojni in vezni material, komplet z izdelavo stikalnega bloka, montaža in priključitev"]
[]
[null,"3.3","DEA POLJE (+1NF00+K3)","kpl",{"v":1,"d":"1.00"},null,{"$f":"E68*F68","v":{"v":0,"d":"0.00"}}]
[null,null,"DEA polje, širina 400mm, z dovodom od DEA spodaj, položaj stikala ter izmerjene vrednosti parametrov so vodeni preko komunikacije, dobava, vgradnja in priklop"]
[]
[null,null,"Stikalo izvlečljive izvedbe In=630A z motornim pogonom 230V AC, Icu 55kA, ključavnico za zaklepanje obeh položajev, ločenimi dodanimi tipkami za vklop in izklop, vklopnimi in izklopnimi tuljavami 230V AC, podnapetostno  U< tuljavo 230V AC,  pomožnimi kontakti vključen (4x), izključen (4x), navit (1x), izvlečen (1x), pripravljen za vklop (1x), digitalno zaščito I> 0,4 do 1 In, I>> 0,6 do 10 In ter integriranimi tokovniki. \nOstala oprema polja:\n• merilni prikazovalnik (U, I, P, S, Q, f, kWh, THD, cos fi)\n• komunikacijski modul in koncentrator\n• tri polni zaščitni avtomati Ik>55kA s pomožnimi kontakti signalizacije stanja\n• tipki vklop / izklop (črna / rdeča)\n• komunikacija modbus TCP/IP\n• stikalo primerno za sinhronizacijo\n• napisna ploščica\n• drobni spojni in vezni material, komplet z izdelavo stikalnega bloka, montaža in priključitev"]
[]
[null,"3.4","ODVODNO POLJE (+1NF00+K1)","kpl",{"v":1,"d":"1.00"},null,{"$f":"E73*F73","v":{"v":0,"d":"0.00"}}]
[null,null,"Odvodno polje, priklop iz strani, širina 1000mm. Položaji stikal ter izmerjene vrednosti parametrov so vodeni preko komunikacije. Dobava, vgradnja in priklop"]
[]
[null,null,"Stikala natične izvedbe, Icu 55kA, ključavnico za zaklepanje obeh položajev, palčka in ročka na vratih enote, digitalna termično - pretokovna zaščita I> 0,4 do 1 In, I>> 0,6 do 10 In, integriranimi tokovniki. \nOstala oprema polja:\n• merilni prikazovalnik polja (U, I, P, S, Q, f, kWh, cos fi)\n• komunikacijski modul in koncentrator\n• komunikacija modbus TCP/IP \n• napisne ploščice\n• drobni spojni in vezni material, komplet z izdelavo stikalnega bloka, montaža in priključitev"]
[null,null,"Stikalo In=63A","kos",{"v":1,"d":"1.00"}]
[null,null,"Stikalo In=100A","kos",{"v":1,"d":"1.00"}]
[null,null,"Stikalo In=160A","kos",{"v":2,"d":"2.00"}]
[null,null,"Stikalo In=200A","kos",{"v":1,"d":"1.00"}]
[null,null,"Stikalo In=400A","kos",{"v":1,"d":"1.00"}]
[]
[null,"3.5","ODVODNO POLJE (+1NF00+K2)","kpl",{"v":1,"d":"1.00"},null,{"$f":"E83*F83","v":{"v":0,"d":"0.00"}}]
[null,null,"Odvodno polje, priklop iz strani, širina 1000mm. Položaji stikal ter izmerjene vrednosti parametrov so vodeni preko komunikacije. Dobava, vgradnja in priklop"]
[]
[null,null,"Stikala natične izvedbe, Icu 55kA, ključavnico za zaklepanje obeh položajev, palčka in ročka na vratih enote, digitalna termično - pretokovna zaščita I> 0,4 do 1 In, I>> 0,6 do 10 In, integriranimi tokovniki. \nOstala oprema polja:\n• merilni prikazovalnik polja (U, I, P, S, Q, f, kWh, cos fi)\n• komunikacijski modul in koncentrator\n• komunikacija modbus TCP/IP \n• napisne ploščice\n• drobni spojni in vezni material, komplet z izdelavo stikalnega bloka, montaža in priključitev"]
[null,null,"Stikalo In=63A","kos",{"v":2,"d":"2.00"}]
[null,null,"Stikalo In=100A","kos",{"v":3,"d":"3.00"}]
[null,null,"Stikalo In=160A","kos",{"v":0,"d":"0.00"}]
[null,null,"Stikalo In=200A","kos",{"v":1,"d":"1.00"}]
[null,null,"Stikalo In=400A","kos",{"v":2,"d":"2.00"}]
[]
[null,"3.6","ODVODNO POLJE (+1NE00+K2)","kpl",{"v":1,"d":"1.00"},null,{"$f":"E93*F93","v":{"v":0,"d":"0.00"}}]
[null,null,"Odvodno polje, priklop iz strani, širina 1000mm. Položaji stikal ter izmerjene vrednosti parametrov so vodeni preko komunikacije. Dobava, vgradnja in priklop"]
[]
[null,null,"Stikala natične izvedbe, Icu 55kA, ključavnico za zaklepanje obeh položajev, palčka in ročka na vratih enote, digitalna termično - pretokovna zaščita I> 0,4 do 1 In, I>> 0,6 do 10 In, integriranimi tokovniki. \nOstala oprema polja:\n• 2x merilni prikazovalnik polja (U, I, P, S, Q, f, kWh, cos fi)\n• komunikacijski modul in koncentrator\n• komunikacija modbus TCP/IP \n• napisne ploščice\n• drobni spojni in vezni material, komplet z izdelavo stikalnega bloka, montaža in priključitev"]
[null,null,"Stikalo In=63A","kos",{"v":1,"d":"1.00"}]
[null,null,"Stikalo In=100A","kos",{"v":1,"d":"1.00"}]
[null,null,"Stikalo In=100A (motorni pogon, vklopna in izklopna tuljava 230V AC, podnapetostna tuljava, dodatni pomožni kontakti, tipke za vklop / izklop","kos",{"v":1,"d":"1.00"}]
[null,null,"Stikalo In=160A","kos",{"v":2,"d":"2.00"}]
[null,null,"Stikalo In=200A","kos",{"v":1,"d":"1.00"}]
[null,null,"Stikalo In=400A","kos",{"v":2,"d":"2.00"}]
[null,null,"Stikalo In=630A","kos",{"v":1,"d":"1.00"}]
[]
[null,"3.7","ODVODNO POLJE (+1NE00+K3)","kpl",{"v":1,"d":"1.00"},null,{"$f":"E105*F105","v":{"v":0,"d":"0.00"}}]
[null,null,"Odvodno polje, priklop iz strani, širina 1000mm. Položaji stikal ter izmerjene vrednosti parametrov so vodeni preko komunikacije. Dobava, vgradnja in priklop"]
[]
[null,null,"Stikala natične izvedbe, Icu 55kA, ključavnico za zaklepanje obeh položajev, palčka in ročka na vratih enote, digitalna termično - pretokovna zaščita I> 0,4 do 1 In, I>> 0,6 do 10 In, integriranimi tokovniki. \nOstala oprema polja:\n• 2x merilni prikazovalnik polja (U, I, P, S, Q, f, kWh, cos fi)\n• komunikacijski modul in koncentrator\n• komunikacija modbus TCP/IP \n• napisne ploščice\n• drobni spojni in vezni material, komplet z izdelavo stikalnega bloka, montaža in priključitev"]
[null,null,"Stikalo In=63A","kos",{"v":3,"d":"3.00"}]
[null,null,"Stikalo In=160A","kos",{"v":2,"d":"2.00"}]
[null,null,"Stikalo In=200A","kos",{"v":3,"d":"3.00"}]
[null,null,"Stikalo In=400A","kos",{"v":2,"d":"2.00"}]
[]
[null,"3.8","DODATNE VAROVALKE"]
[null,null,"Varovalčni ločilnik z ustrezno varovalko za potrebe DEA signalizacije izpada napateosti","kpl",{"v":3,"d":"3.00"},null,{"$f":"E115*F115","v":{"v":0,"d":"0.00"}}]
[]
[null,"3.9","IZDELAVA TRIPOLNE SHEME"]
[null,null,"Izdelava projekta tripolne sheme novega NN razdelilnega bloka","kpl",{"v":1,"d":"1.00"},null,{"$f":"E118*F118","v":{"v":0,"d":"0.00"}}]
[]
[null,"3.10","TOKOVNI INSTRUMENTNI TRANSFORMATORJI ZA POTREBE KOMPENZACIJE"]
[]
[null,null,"Merilna tokovna transformatorja za potrebe kompenzacije nameščena v eno fazo vsakega dovoda, TIT 900/5 A, ter en sumarni TIT (5+5)/5 A","kos",{"v":3,"d":"3.00"},null,{"$f":"E122*F122","v":{"v":0,"d":"0.00"}}]
[]
[null,"3.11","Obvezni in priporočeni rezervni deli","kpl",{"v":1,"d":"1.00"},null,{"$f":"E124*F124","v":{"v":0,"d":"0.00"}}]
[]
[null,"3.12","Izvedba funkcionalnih preizkusov, meritev opreme in spuščanje v pogon","kpl",{"v":1,"d":"1.00"},null,{"$f":"E126*F126","v":{"v":0,"d":"0.00"}}]
[]
[null,"3.13","Izračun in parametriranje NN zaščitnih naprav (pretokovno termična zaščita, kratkostična zaščita)","kpl",{"v":1,"d":"1.00"},null,{"$f":"E128*F128","v":{"v":0,"d":"0.00"}}]
[]
[null,"3.14","Šolanje posluževalnega osebja","kpl",{"v":1,"d":"1.00"},null,{"$f":"E130*F130","v":{"v":0,"d":"0.00"}}]
[]
["SKUPAJ 3.3: NN STIKALIŠČE:",{"$nulls":5},{"$f":"SUM(G53:G131)","v":{"v":0,"d":"0.00"}}]
[]
["3.","4.","KOMPENZACIJSKA NAPRAVA"]
[null,"4.1","Avtomatska filtrska kompenzacijska naprava","kpl",{"v":1,"d":"1.00"},null,{"$f":"E135*F135","v":{"v":0,"d":"0.00"}}]
[null,null,"• dimenzij:800x600x2100mm"]
[null,null,"• nazivna moč naprave 225 kvar"]
[null,null,"• nazivna napetost 400 V"]
[null,null,"• mrežna frekvenca 50 Hz"]
[null,null,"• nazivni tok naprave 325 A"]
[null,null,"• bremensko stikalo 400 A"]
[null,null,"• faktor dušenja 7 %"]
[null,null,"• frekvenca resonance 189 Hz"]
[null,null,"• trifazni kondenzatorji 7 stopenj,"]
[null,null,"• trifazna filtrska dušilka: 400 V, 50 Hz"]
[null,null,"• regulacijski rele z MODBUS TCP/IP komunikacijo"]
[null,null,"• izvedena izmenjava zraka z ventilatorjem na stropu omare"]
[null,null,"• tokovna veja x/5 A"]
[null,null,"• krmilna napetost 230 V, 50 Hz"]
[null,null,"• razelektrenje kondenzatorskih grup v 8s s pomočjo praznilne dušilke"]
[null,null,"• zaščita: IP 31"]
[null,null,"Izvedba v skladu z IEC 831 in SIST EN 60439-1."]
[]
[null,"4.2","Izvedba meritev za dimenzioniranje kompenzacijske naprave","kpl",{"v":1,"d":"1.00"},null,{"$f":"E154*F154","v":{"v":0,"d":"0.00"}}]
[null,null,"OPOMBA: Avtomatsko kompenzacijsko napravo se izdela in dobavi po zagonu objekta, na osnovi opravljenih meritev parametrov omrežja."]
[]
["SKUPAJ 3.4: KOMPENZACIJSKA NAPRAVA:",{"$nulls":5},{"$f":"SUM(G134:G156)","v":{"v":0,"d":"0.00"}}]
[]
["SKUPAJ 3. SN IN NN OPREMA:",{"$nulls":5},{"$f":"G157+G132+G51+G37","v":{"v":0,"d":"0.00"}}]

{"sheet":"DEA","index":4,"n_rows":124,"n_cols":7,"rows_kept":124,"merged":[[4,1,4,6],[6,1,6,6],[8,0,9,1],[8,2,9,2],[8,3,9,3],[8,4,9,4],[8,5,9,5],[8,6,9,6],[121,0,121,5],[123,0,123,5]]}
[]
[]
[]
[]
["4.","DIZEL ELEKTRIČNI AGREGAT 400kVA"]
[]
[]
[]
["POSTAVKA\nNo",null,"OPIS","ENOTA","OCENJENA\nKOLIČINA","CENA NA ENOTO \n(EUR)","SKUPAJ\n(EUR)"]
[]
[]
["4.","1.","NOVI DIZEL ELEKTRIČNI AGREGAT","kpl",{"v":1,"d":"1.00"},null,{"$f":"E12*F12","v":{"v":0,"d":"0.00"}}]
[]
[null,null,"OPOMBE: "]
[null,null,"-Izbrana oprema z navedenim proizvajalcem se lahko zamenja z opremo drugega proizvajalca in drugega tipa, vendar z enakovrednimi karakteristikami. Pred naročilom je potrebno, na podlagi predloženih dokumentov in atestov, pridobiti soglasje investitorja in projektanta inštalacij! "]
[null,null,"-Ponudnik DEA mora priložiti pooblastilo proizvajalca iz katarega je razvidna njegova usposobljenost glede prodaje, instalacije, servisiranja in oskrbe z rezervnimi deli. "]
[null,null,"-Dobavitelj opreme mora preveriti ustreznost prostorske rešitve in dispozicije opreme, prezračevanja in goriva ter kabelskih povezav in po potrebi podati ustrezne rešitve!"]
[null,null,"-Dobavitelj opreme mora v ceno novega DEA všteti odkup starega DEA po ocenjeni vrednosti (oceno vrednosti opravi uradni cenilec najet s strani Investitorja)"]
[null,null,"-Dobavitelj opreme mora hkrati upoštevati zahteve iz splošnega ter tehničnega dela razpisne dokumentacije"]
[]
[null,"1.1","DIZEL ELEKTRIČNI AGREGAT 400 kVA","kpl",{"v":1,"d":"1.00"}]
[null,null,"Podatki DEA enote: moč: 400 kVA, 320kW, 3x400/231V, 50 Hz  "]
[null,null,"DEA mora zagotavljati napajanje z rezervno električno energijo v slučaju izpada primarnega mrežnega vira z avtomatskim prevzemom nujnih porabnikov objekta in obratno."]
[null,null,"-avtomatski vklop agregatov se mora izvršiti v naslednjih primerih:"]
[null,null,". izpad električnega omrežja"]
[null,null,". odstopanje omrežne napetosti večje od +10% in -10% Un"]
[null,null,". nesimetrija med fazami večja od +/-10% Un"]
[null,null,". čas prevzema polne moči agregata mora biti manjši od 15s"]
[null,null,"- avtomatski izklop se izvrši, ko je:"]
[null,null,". odstopanje omrežne napetosti manjše od +7% in -10% Un"]
[null,null,". nesimetrija med fazami manjša od +/-8% Un"]
[null,null,". časovni rele mora omogočati nastavitev zakasnitve izklopa agregata pri povratku kvalitetne omrežne napetosti do 10 min"]
[null,null,"-tolerance napetosti in frekvence agregata morajo biti v naslednjih mejah:"]
[null,null,". pri zvezni spremembi bremena od 0% do 100% Pn je dovoljena sprememba napetosti +/-0,5% Un in frekvence +/-0,25% nazivne frekvence"]
[null,null,". pri skočni spremembi bremena od 0% do 25% Pn mora agregat enake tolerance doseči v času  manjšem od 200ms"]
[null,null,". pri skočni spremembi bremena od 0% do 40% Pn mora agregat enake tolerance doseči v času  manjšem od 1s vendar pri maksimalni spremembi napetosti +/-10% Un in frekvence +/-5% fn"]
[null,null,". pri skočni spremembi bremena od 0% do 70% Pn mora agregat enake tolerance doseči v času  manjšem od 3s vendar pri maksimalni spremembi napetosti +/-12% Un in frekvence +/-5% fn"]
[null,null,"-nazivna moč agregata je deklarirana za cosφ=0.8"]
[null,null,"-faktor popačenja (distorzije) pri Pn in cosφ=0.8 mora biti <7%"]
[null,null,"-generator in motor morata brez poškodb prenesti vrtljaje 20% večje od nazivnih"]
[null,null,"-agregat mora brez poškodb prenesti 60 minutno 10% preobremenitev (110% Pn) na vsakih 12 ur"]
[null,null,"-agregat ne sme povzročati radijskih motenj v skladu z veljavnimi predpisi o EMC"]
[null,null,"-šum agregata v skladu z veljavnimi direktivami EU"]
[null,null,"-vse navedene karakteristike agregata morajo veljati za okoliške pogoje: Temperaturo do 40°C, relativna vlažnost do 80% in nadmorska višina do 360m"]
[null,null,"- sistem vodenja mora omogočati tudi preizkušanje agregatov pod dejanskim bremenom na način, da pri preklopu MREŽA<->DEA ni izpada napetosti na porabnikih, niti frekvenčne motnje (sinhroni preklopi - prehod iz samostojnega otočnega načina delovanja v mehki paralelni način delovanja z mrežnim virom in obratno) ali trajno paralelno delovanje na posameznem preklopnem mestu s poljubno nastavitvijo izhodne moči generatorskega vira"]
[null,null,"Sistem mora omogočati sinhronizirane brezprekinitvene preklope med mrežnim in agregatskim virom v smislu sledečih funkcij:"]
[null,null,"- ob izpadu mrežnega vira in avtomatskem prevzemu porabnikov s strani agregata, se mora ob povratku mrežnega vira izvršiti preklop nazaj na mrežni vir brez prekinitve."]
[null,null,"- sistem mora omogočati bremensko testiranje agregata s sinhroniziranimi brezprekinitvenimi preklopi  v obe smeri (preklop iz mrežnega vira na generatorski vir in obratno) \nbrez motenja porabnikov po sistemu mehkega obremenjevanja in razbremenjevanja po časovno linearnem poteku."]
[null,null,"Sistem za brezprekinitvene preklope mora biti poleg ustreznih zaščit opremljen še s prikazovalnikom sinhronizacije z jasnim prikazom frekvenčne in napetostne diference, ter razliko faznega kota."]
[null,null,"Mrežni vir mora biti opremljen s setom zaščit, ki omogočajo hitri odklop mrežnega vira v času paralelnega spoja z generatorjem vprimeru mrežne anomalije  (pod/nad napetost, pod/nad frekvenca, nenadni zamik vektorskega kota /dt, nenadna sprememba frekvence  df/dt, smerna zaščita."]
[null,null,"Zaradi pomembnosti objekta mora biti rezervni napajalni sistem opremljen še z dodatno rezervno elektroniko za avtomatsko delovanje v slučaju odpovedi primarnega nadzornega sistema."]
[null,null,"Rezervni sistem mora biti opremljen z elektroniko za upravljanje z obveznim minimalnim setom zaščit (pritisk olja, temperatura motorja, visoki obrati motorja, podnapetostna zaščita, pretokovna in kratkostična zaščita). Poleg tega mora prikazovati analogni prikaz pritiska olja motorja, temperature motorja, napetost startnih baterij, napetost generatorja (3f), tok generatorja (3f) in frekvence generatorja."]
[null,null,"- DEA sklop mora biti opremljen z ustreznim izmenjevajcem toplote za odvajanje toplotnih izgub iz DEA. Predmet ponudbe mora biti dobava in montaža opreme z vsemi potrebnimi povezavami."]
[]
[null,null,"- DIZELSKI MOTOR: Perkins ali enakovredno, EKO motor novejše generacije, digitalni elektronski modul za uravnavanje delovanja motorja in števila vrtljajev, podaljšani servisni intervali, visok izkoristek, majhna poraba, diagnostika na PC."]
[null,null,"- hladilna tekočina motorja mora biti hlajena preko izmenjevalca toplote"]
[null,null,". dovoljena trajna preobremenitev za 1 uro v 12 urni periodi: 10%"]
[null,null,". nadzor nad številom obratov skladno z ISO 8528, Class G2"]
[null,null,". prevzem 100% bremena v času<= 15 s"]
[null,null,". možnost parametriranja in spreminjanja delovanja motorja na PC"]
[null,null,". maksimalno odstopanje števila obratov pri konstantnem bremenu: 0.25%"]
[null,null,". mehki zagon motorja"]
[null,null,". nazivni obrati: 1500 min -1"]
[null,null,". nastavitveno področje obratov + - 5%"]
[null,null,". prehodna sprememba obratov za nenadno 50% spremembo aktivnega bremena v plus ali minus: <= 10%"]
[null,null,". čas, ko dosežemo nazivno število obratov po nenadni spremembi bremena: <= 5s"]
[null,null,". prevzem 100% bremena: <=15s"]
[null,null,". emisije izpušnih plinov skladno s tehniškimi predpisi in slovensko ter EU zakonodajo "]
[null,null,"-agregat mora imeti napisno ploščico z oznako proizvajalca, s tehničnimi podatki, letom proizvodnje in tovarniško številko; prav tako mora biti napisna ploščica za motor in generator "]
[]
[null,null,"MOTOR mora biti opremljen z najmanj naslednjo opremo:"]
[null,null,"- oljnim filtrom z dvojnim obhodom,"]
[null,null,"- elektromagnetnim zagonskim motorjem,"]
[null,null,"- dvojnim suhim zračnim filtrom,"]
[null,null,"- zaščito proti nizkemu pritisku olja in visokemu pritisku v vodnem sistemu hlajenja,"]
[null,null,"- zaščito pred preveliko hitrostjo,"]
[null,null,"- krmilno in razdelilno omarico s priključenimi kabli,"]
[null,null,"- ustreznim izpušnim sistemom (kompletno z dimnično cevjo),"]
[null,null,"- grelcem motorja s nastavljivim termostatom in obtočno črpako,"]
[null,null,"- dušilnikom zvoka in kompenzatorjem vibracij,"]
[null,null,"- elektromagnetnim zapornim in odpirnim ventilom goriva,"]
[null,null,"- hladilnikom mazalnega olja,"]
[null,null,"- plinotesnim, iz nerjavnega jekla izvedenim izpušnim sistemom,"]
[null,null,"- gibljivimi dovodi za gorivo,"]
[]
[null,null,"- TRIFAZNI SINHRONSKI GENERATOR: kot npr Leroy Somer ali enakovredno"]
[null,null,". nazivna moč 400 kVA, 320kW"]
[null,null,". nazivni cos phi = 0.8, napetost 400/231V, frekvenca 50 Hz, odstopanje od frekvence + - 0.15%"]
[null,null,". dovoljena preobremenitev za 1 uro v 12 urni periodi: 10%"]
[null,null,". vzbujanje s permanentim magnetom in napetostna regulacija vseh treh faz"]
[null,null,". tranzientno odstopanje napetosti po nenadni spremebi bremena za 70% nazivne vrednosti, v pozitivno ali negativno smer: <= 10%"]
[null,null,". čas po katerem napetost po nenadni spremembi bremena za 70% doseže nazivno vrednost: <= 5s"]
[null,null,". natančnost statične regulacije napetosti: + - 0.5 %"]
[null,null,". izolacijski razred statorskih navitij: H"]
[null,null,". prirastek temperature ob trajni nazivni obremenitvi kot za razred izolacije: F"]
[null,null,". stopnja radijske interference v skladu z EN50081 in EN50082"]
[null,null,". termistorska zaščita v statorskem navitju"]
[null,null,"- dokumentacija diesel električnega agregata, atesti, CE certifikat"]
[null,null,"- tovarniški preizkus pred dobavo opreme na objekt, vključno z obremenilnim preizkusom pri 110% nazivne moči. Preizkusne protokole pripravi ponudnik ter odobri naročnik. Vse stroške v zvezi s prevzemom krije ponudnik."]
[]
[null,"1.2","OHIŠJE","kpl",{"v":1,"d":"1.00"}]
[null,null,"Dobavitelj dobavi DEA v kovinskem ohišju, ki mora biti odporno na vse vremenske razmere na mestu vgradnje"]
[null,null,"- okvirne mere: dolžina 5m, širina 1,7m in višina 2,2m"]
[null,null,"- galvanizirana konstrukcija z vrati"]
[null,null,"- nivo hrupa 55dB na razdalji 7m"]
[]
[null,"1.3","KOMANDNA OMARA DEA","kpl",{"v":1,"d":"1.00"}]
[null,null,"Komandna omara je sestav krmilniških in nadzornih enot, ter pomožne krmilne opreme za krmiljenje DEA enote (hlajenje, obratovanje, sinhronizacija, paralelno obratovanje, virtualna elektrarna)"]
[null,null,"Preklop se vrši v novem NN stikalnem bloku (plošča agregatskega razvoda, vključujoč TR in vezno polje)"]
[null,null,"Komandna omara mora omogočati naslednje funkcionalnosti  DEA sistema:"]
[null,null,"- sinhronizacijo in vključevanje na agregatski del NN plošče"]
[null,null,"- sinhronizacijo in vključevanje na mrežni del NN plošče"]
[null,null,"- brezprekinitveni prehod na mrežo ob zaustavitvi DEA"]
[null,null,"- paralelno delovanje z mrežo kot virtualna elektrarna"]
[]
[null,"1.4","OLJNA INŠTALACIJA (DODATNI REZERVOAR)","kpl",{"v":1,"d":"1.00"}]
[null,null,"Dobavitel montira in dobavi dodatni rezervoar goriva v stari DEA prostor vključno s sesalno garnituro, merilniki, ventili, črpalkami in ostalo potrebno opremo"]
[]
[null,"1.5","VIRTUALNA ELEKTRARNA","kpl",{"v":1,"d":"1.00"}]
[null,null,"Namestitev dodatne programske opreme v krmilnik, ki omogoča minimalno vsaj naslednje funkcionalnosti:\n- sprejem daljinskega signala za aktivacijo (digitalni signal iz druge nadzorne naprave - Elektro Ljubljana, ali komunikacijski signal preko Modbus TCP),\n- avtomatske prenastavitve delovne in jalove izhodne moči za trajno paralelno delovanje z mrežo enega ali obeh agregatov,\n- dvodimenzijska regulacija jalove moči generatorjev glede na napetostne razmere omrežja po zahtevah SODO - Pravilnik o vključevanju malih elektrarn v elektroenergetsko omrežje\n- tokovni instrumentni transformatorji 600/5A cl.0,5 skladni s SONDO za potrebe obračunskih meritev virtualne elektrarne (plombirano in umerjeno).\n- omarica števčnih meritev z pripadajočo opremo za potrebe virtualne elektrarne je zajeta v poglavju 6.4 Meritve.\n"]
[]
["SKUPAJ 4.1: DIZEL ELEKTRIČNI AGREGAT:",{"$nulls":5},{"$f":"SUM(G12:G121)","v":{"v":0,"d":"0.00"}}]
[]
["SKUPAJ 4. DIZEL ELEKTRIČNI AGREGAT 400kVA:",{"$nulls":5},{"$f":"SUM(G122)","v":{"v":0,"d":"0.00"}}]

{"sheet":"ODKUP DEA","index":5,"n_rows":18,"n_cols":7,"rows_kept":18,"merged":[[4,1,4,6],[6,1,6,6],[8,0,9,1],[8,2,9,2],[8,3,9,3],[8,4,9,4],[8,5,9,5],[8,6,9,6],[15,0,15,5],[17,0,17,5]]}
[]
[]
[]
[]
["5.","ODKUP OBSTOJEČEGA DEA"]
[]
[]
[]
["POSTAVKA\nNo",null,"OPIS","ENOTA","OCENJENA\nKOLIČINA","CENA NA ENOTO \n(EUR)","SKUPAJ\n(EUR)"]
[]
[]
["5.","1.","ODKUP OBSTOJEČEGA DEA"]
[]
[null,"1.1","Ponudbena vrednost za odkup obstoječega DEA","kpl",{"v":1,"d":"1.00"},null,{"$f":"-(E14*F14)","v":{"v":0,"d":"0.00"}}]
[]
["SKUPAJ 5.1: ODKUP OBSTOJEČEGA DEA:",{"$nulls":5},{"$f":"SUM(G14)","v":{"v":0,"d":"0.00"}}]
[]
["SKUPAJ 5. ODKUP OBSTOJEČEGA DEA 250kVA:",{"$nulls":5},{"$f":"SUM(G16)","v":{"v":0,"d":"0.00"}}]

{"sheet":"Vodenje in LR","index":6,"n_rows":105,"n_cols":7,"rows_kept":105,"merged":[[4,1,4,6],[6,1,6,6],[8,0,9,1],[8,2,9,2],[8,3,9,3],[8,4,9,4],[8,5,9,5],[8,6,9,6],[31,0,31,5],[60,0,60,5],[80,0,80,5],[102,0,102,5],[104,0,104,5]]}
[]
[]
[]
[]
["6.","VODENJE / NADZOR, MERITVE IN LASTNA PORABA"]
[]
[]
[]
["POSTAVKA\nNo",null,"OPIS","ENOTA","OCENJENA\nKOLIČINA","CENA NA ENOTO \n(EUR)","SKUPAJ\n(EUR)"]
[]
[]
["6.","1.","OPREMA ZA NADZOR / VODENJE"]
[]
[null,null,"Izdelava sistema vodenja / nadzora nad TP2050 Reaktor skladno z opisi v splošnem in tehničnem delu razpisne dokumentacije "]
[]
[null,"1.1","Postavitev novega SCADA sistema vodenja SN in NN stikališča ter izdelava ustreznih zaslonskih slik, tudi za ostale sisteme (UPS, DEA, rezervoar goriva, kompenzacijska naprava, virtualna elektrarna, nadzor transformatorjev, števčne meritve...);","kpl",{"v":1,"d":"1.00"},null,{"$f":"E16*F16","v":{"v":0,"d":"0.00"}}]
[]
[null,"1.2","Povezava novega sistema vodenja s sistemom vodenja diesel agregata, katerega bo možno tudi daljinsko krmiliti","kpl",{"v":1,"d":"1.00"},null,{"$f":"E18*F18","v":{"v":0,"d":"0.00"}}]
[]
[null,"1.3","Izdelava testnih tabel in izvedba preizkusov za IQ (Instalation Quality), OQ (Operational Quality) in PQ (Performance Quality)","kpl",{"v":1,"d":"1.00"},null,{"$f":"E20*F20","v":{"v":0,"d":"0.00"}}]
[]
[null,"1.4","Izdelava vse potrebne funkcijske specifikacije, parametriranje, izvesti testiranja, spuščanje v obratovaje in poskusno obratovanje vse dobavljene opreme in obstoječih sistemov Naročnika, s katerimi se nova oprema povezuje;","kpl",{"v":1,"d":"1.00"},null,{"$f":"E22*F22","v":{"v":0,"d":"0.00"}}]
[]
[null,"1.5","Izvedba šolanja Naročnikovega osebja","kpl",{"v":1,"d":"1.00"},null,{"$f":"E24*F24","v":{"v":0,"d":"0.00"}}]
[]
[null,"1.6","SCADA strežnik:\n- CPU: Intel Core i5 (3,2 GZH);\n- št. rež pomnilnika: 4 x, 2 x prosto; max: 16/32 GB;\n- RAM: 8 GB DDR3;\n- HDD: 1 TB 7200rpm+1 TB 7200rpm – RAID1; \n- DVD+/-RW DL;\n- OHIŠJE: prostostoječe;\n- Grafika: integrirana Intel;\n- barvni LCD monitor 27'';\n- Povezave: 10/100 Mb/s mrežna kartica;\n- strojni RAID 1 krmilnik;\n- SLO USB tipkovnica in opt. Miška;\n- zvočna kartica integrirana HD Audio;\n- Operacijski sistem: zadnja verzija Windows 64-bit s priloženimi mediji za obnovitev OS;\n- barvni laserski tiskalnik A4.\n","kpl",{"v":1,"d":"1.00"},null,{"$f":"E26*F26","v":{"v":0,"d":"0.00"}}]
[]
[null,"1.7","SCADA sistemska programska oprema, kot npr.:\n- iFIX Standard HMI Pak neom. št. I/O točk, runtime, v5.8\n- Historian Standard strežnik 1000 točk, 5 uporabnikov, ver. 6.0\n- Ustrezni driverji in OPC Server za priključitev po protokolih:\n- Modbus\n- Modbus TCP\n- IEC 61850\n- Profinet\n- Standardni gonilnik: SI Ethernet /Profibus goninik\n- OPC server za obstoječi energetski sistem:\n- IGS: Industrial Gateway Server Basic Protocols (stand alone)\n\n","kpl",{"v":1,"d":"1.00"},null,{"$f":"E28*F28","v":{"v":0,"d":"0.00"}}]
[]
[null,"1.8","Nepredvidena dela","%",{"v":3,"d":"3.00"},null,{"$f":"SUM(G13:G29)*0.03","v":{"v":0,"d":"0.00"}}]
[]
["SKUPAJ 6.1: OPREMA ZA NADZOR/VODENJE:",{"$nulls":5},{"$f":"SUM(G13:G31)","v":{"v":0,"d":"0.00"}}]
[]
["6.","2.","KRMILNO - KOMUNIKACIJSKA OMARA +DY"]
[]
[null,"2.1","Krmilno komunikacijska omara z mrežnim stikalom in krmilnikom","kpl",{"v":1,"d":"1.00"},null,{"$f":"E36*F36","v":{"v":0,"d":"0.00"}}]
[null,null,"• Omara s kovinskimi vrati Rittal,  dimenzije 2000x800x600 (vxšxg), podstavek 100, montažna plošča, lučka s stikalom, grelec s termostatom, mehanska zaščita min. IP55, mrežica za zračenje","kos",{"v":1,"d":"1.00"}]
[null,null,"• KRMILNIK kot npr. GE FANUC VERSAMAX s podnožji za naslednje elemente:"]
[null,null,"-Napajanje, CPU, komunikacija, podnožja ","kpl",{"v":1,"d":"1.00"}]
[null,null,"-DO 16x","kos",{"v":1,"d":"1.00"}]
[null,null,"-AI 8x","kos",{"v":1,"d":"1.00"}]
[null,null,"-DI 16x","kos",{"v":3,"d":"3.00"}]
[null,null,"• MGate MB3480 pretvornik Modbus TCP/RTU","kos",{"v":1,"d":"1.00"}]
[null,null,"• Napajalnik 230V AC / 24V AC, min. 15A","kos",{"v":1,"d":"1.00"}]
[null,null,"• Napajalnik 230V AC / 24V DC, min. 15A","kos",{"v":1,"d":"1.00"}]
[null,null,"• Instalacijski odklopniki 2 polni AC s pomožnimi signalnimi kontakti 1NO/NC","kos",{"v":4,"d":"4.00"}]
[null,null,"• Instalacijski odklopniki 2 polni DC s pomožnimi signalnimi kontakti 1NO/NC","kos",{"v":4,"d":"4.00"}]
[null,null,"• Pomožni releji  min. 3xNO/NC ","kos",{"v":10,"d":"10.00"}]
[null,null,"• Grebenasta preklopka (ročno/avtomatsko)","kos",{"v":1,"d":"1.00"}]
[null,null,"• Grebenasta preklopka (lokalno/daljinsko)","kos",{"v":1,"d":"1.00"}]
[null,null,"• Ožičenje vseh v nadzor in komunikacijo vključenih elementov","kpl",{"v":1,"d":"1.00"}]
[null,null,"• Sponke Weidmuller","kpl",{"v":1,"d":"1.00"}]
[null,null,"• DIN letve in rebrasti kanali","kpl",{"v":1,"d":"1.00"}]
[]
[null,"2.2","Mrežno stikalo Cisco ali Ruggedcom 32 portov (20x RJ45, 4x OPT) ter podpora za protokol MODBUS TCP/IP","kos",{"v":1,"d":"1.00"},null,{"$f":"E55*F55","v":{"v":0,"d":"0.00"}}]
[]
[null,"2.3","Optični patch panel (TP2050 in upravna stavba)","kos",{"v":2,"d":"2.00"},null,{"$f":"E57*F57","v":{"v":0,"d":"0.00"}}]
[]
[null,"2.4","Nepredvidena dela","%",{"v":3,"d":"3.00"},null,{"$f":"SUM(G36:G58)*0.03","v":{"v":0,"d":"0.00"}}]
[]
["SKUPAJ 6.2: KRMILNO - KOMUNIKACIJSKA OMARA +DY:",{"$nulls":5},{"$f":"SUM(G35:G60)","v":{"v":0,"d":"0.00"}}]
[]
["6.","3.","RAZDELILEC LASTNE RABE +NG, +NJ"]
[]
[null,"3.1","Razdelilec lastne rabe DEA in razsmerjene napetosti 230V AC ","kpl",{"v":1,"d":"1.00"},null,{"$f":"E65*F65","v":{"v":0,"d":"0.00"}}]
[null,null,"• Omara s kovinskimi vrati dimenzije Rittal, dimenzije 2000x800x600 (vxšxg), podstavek 100, montažna plošča, lučka s stikalom, grelec s termostatom, mehanska zaščita min. IP55, mrežica za zračenje","kos",{"v":1,"d":"1.00"}]
[null,null,"• Stikalo 3 polno, 63A, s palčko in ročko na vratih omare","kos",{"v":1,"d":"1.00"}]
[null,null,"• Prenapetostni odvodniki","kpl",{"v":1,"d":"1.00"}]
[null,null,"• Voltmeter z integrirano preklopko","kos",{"v":2,"d":"2.00"}]
[null,null,"• Trifazni indikator U< in U> s pomožnimi alarmnimi kontakti ","kos",{"v":2,"d":"2.00"}]
[null,null,"• Instalacijski odklopniki 1 polni AC, min. Ik 15kA","kos",{"v":20,"d":"20.00"}]
[null,null,"• Instalacijski odklopniki 2 polni AC, min. Ik 15kA","kos",{"v":22,"d":"22.00"}]
[null,null,"• Instalacijski odklopniki 3 polni AC, min. Ik 15kA","kos",{"v":10,"d":"10.00"}]
[null,null,"• Pomožni kontakti 1NO / 1NC","kos",{"v":52,"d":"52.00"}]
[null,null,"• Inštalacijski tripolni kontaktorji 25A s pomožnimi kontakti, tuljava 230V AC","kos",{"v":15,"d":"15.00"}]
[null,null,"• Sponke Weidmuller","kpl",{"v":1,"d":"1.00"}]
[null,null,"• DIN letve in rebrasti kanali","kpl",{"v":1,"d":"1.00"}]
[]
[null,"3.2","Nepredvidena dela","%",{"v":3,"d":"3.00"},null,{"$f":"SUM(G65:G78)*0.03","v":{"v":0,"d":"0.00"}}]
[]
["SKUPAJ 6.3: RAZDELILEC +NG, +NJ:",{"$nulls":5},{"$f":"SUM(G64:G80)","v":{"v":0,"d":"0.00"}}]
[]
["6.","4.","MERITVE SN DOVOD IN DEA VIRTUALNA ELEKTRARNA"]
[]
[null,"4.1","Števec Landis&Gyr ZMD410 CT44.0457 S3, 3x58/100V z DLMS protokolom za minimalno dve neodvisni liniji","kos",{"v":1,"d":"1.00"},null,{"$f":"E85*F85","v":{"v":0,"d":"0.00"}}]
[]
[null,"4.2","Števec Landis&Gyr ZMD410 CT44.0457 S3, 3x230/400V z DLMS protokolom za minimalno dve neodvisni liniji","kos",{"v":1,"d":"1.00"},null,{"$f":"E87*F87","v":{"v":0,"d":"0.00"}}]
[]
[null,"4.3","2xRS485 izhodni modul (CU-Q22)","kos",{"v":2,"d":"2.00"},null,{"$f":"E89*F89","v":{"v":0,"d":"0.00"}}]
[]
[null,"4.4","GPRS/GSM/RS485 modem (CU-P32)","kos",{"v":2,"d":"2.00"},null,{"$f":"E91*F91","v":{"v":0,"d":"0.00"}}]
[]
[null,"4.5","Napajalnik za CU-P32 230V AC (CU-ADP2)","kos",{"v":2,"d":"2.00"},null,{"$f":"E93*F93","v":{"v":0,"d":"0.00"}}]
[]
[null,"4.6","Napajalnik za CU-P32 230V AC (CU-ADP2)","kos",{"v":2,"d":"2.00"},null,{"$f":"E95*F95","v":{"v":0,"d":"0.00"}}]
[]
[null,"4.7","Komunikacijski pretvornik RS485 DLMS v Modbus TCP/IP s programsko opremo (Kalkitech SYNC2000), minimalno 2 vhoda","kos",{"v":1,"d":"1.00"},null,{"$f":"E97*F97","v":{"v":0,"d":"0.00"}}]
[]
[null,"4.8","Merilna omarica števca, v skladu s SONDO","kos",{"v":2,"d":"2.00"},null,{"$f":"E99*F99","v":{"v":0,"d":"0.00"}}]
[]
[null,"4.9","Umerjanje, plombiranje, žigosanje merilne garniture ter nastavljanje komunikacijskega pretvornika Kalkitech","kpl",{"v":2,"d":"2.00"},null,{"$f":"E101*F101","v":{"v":0,"d":"0.00"}}]
[]
["SKUPAJ 6.4: MERITVE:",{"$nulls":5},{"$f":"SUM(G85:G102)","v":{"v":0,"d":"0.00"}}]
[]
["SKUPAJ 6. VODENJE, MERITVE IN LASTNA PORABA:",{"$nulls":5},{"$f":"G103+G81+G61+G32","v":{"v":0,"d":"0.00"}}]

{"sheet":"Vzdrževanje","index":7,"n_rows":34,"n_cols":7,"rows_kept":34,"merged":[[4,1,4,6],[6,1,6,6],[8,0,9,1],[8,2,9,2],[8,3,9,3],[8,4,9,4],[8,5,9,5],[8,6,9,6],[31,0,31,5],[33,0,33,5]]}
[]
[]
[]
[]
["7.","VZDRŽEVANJE"]
[]
[]
[]
["POSTAVKA\nNo",null,"OPIS","ENOTA","OCENJENA\nKOLIČINA","CENA NA ENOTO \n(EUR)","SKUPAJ\n(EUR)"]
[]
[]
["7.","1.","VZDRŽEVANJE"]
[]
[null,null,"Ponudnik poda ceno za tekoče ali periodično vzdrževanje novo vgrajene opreme skladno z zahtevami tehnične regulative in navodili proizvajalca. Vključiti mora vsa potrebna dela in potrebni material (preizkusi, meritve, čiščenje, izdelava poročil, žarnice, olje, varovalke, baterije, itd.). Cena je za obdobje 5 let po prevzemu objekta s strani naročnika. Naročnik bo plačal izvedbo vzdrževalnih del za tekoče leto na podlagi s strani naročnika potrjenaga zapisnika o izvršenih vzdrževalnih delih za tekoče leto."]
[]
[null,"1.1","Vzdrževanje SN stikališča","kpl",{"v":1,"d":"1.00"},null,{"$f":"E16*F16","v":{"v":0,"d":"0.00"}}]
[]
[null,"1.2","Vzdrževanje NN stikališča","kpl",{"v":1,"d":"1.00"},null,{"$f":"E18*F18","v":{"v":0,"d":"0.00"}}]
[]
[null,"1.3","Vzdrževanje transformarorjev","kpl",{"v":1,"d":"1.00"},null,{"v":0,"d":"0.00"}]
[]
[null,"1.4","Vzdrževanje kompenzacijske naprave","kpl",{"v":1,"d":"1.00"},null,{"v":0,"d":"0.00"}]
[]
[null,"1.5","Vzdrževanje UPS naprave","kpl",{"v":1,"d":"1.00"},null,{"v":0,"d":"0.00"}]
[]
[null,"1.5","Vzdrževanje DEA naprave","kpl",{"v":1,"d":"1.00"},null,{"$f":"E26*F26","v":{"v":0,"d":"0.00"}}]
[]
[null,"1.6","Vzdrževanje sistema vodenja in nadzora","kpl",{"v":1,"d":"1.00"},null,{"v":0,"d":"0.00"}]
[]
[null,"1.7","Vzdrževanje električnih inštalacij (splošna in zasilna razsvetljava, moč, ozemljitve, strelovodi, itd.)","kpl",{"v":1,"d":"1.00"},null,{"v":0,"d":"0.00"}]
[]
["SKUPAJ 7.1: VZDRŽEVANJE:",{"$nulls":5},{"$f":"SUM(G16:G30)","v":{"v":0,"d":"0.00"}}]
[]
["SKUPAJ 7. VZDRŽEVANJE OPREME:",{"$nulls":5},{"$f":"SUM(G32)","v":{"v":0,"d":"0.00"}}]